fUSD/lending_fUSD_20260602
["ID","MTS","AMOUNT","RATE_DAILY","PERIOD"]
[423765754,1780405832000,-500.0,0.00010589,2]
[423765750,1780405832000,-288.53455176,0.00010589,2]
[423765749,1780405832000,-500.0,0.00010589,2]
[423765742,1780405832000,-500.0,0.00010589,2]
[423765746,1780405832000,-500.0,0.00010589,2]
[423765744,1780405832000,-500.0,0.00010589,2]
[423765756,1780405832000,-500.0,0.00010589,2]
[423765747,1780405832000,-500.0,0.00010589,2]
[423765764,1780405832000,-500.0,0.00010589,2]
[423765757,1780405832000,-500.0,0.00010589,2]
[423765761,1780405832000,-500.0,0.00010589,2]
[423765762,1780405832000,-500.0,0.00010589,2]
[423765758,1780405832000,-500.0,0.00010589,2]
[423765759,1780405832000,-500.0,0.00010589,2]
[423765760,1780405832000,-500.0,0.00010589,2]
[423765792,1780405833000,-263.81390996,0.00010589,2]
[423765789,1780405833000,-500.0,0.00010589,2]
[423765795,1780405833000,-200.0,0.0001068,2]
[423765790,1780405833000,-500.0,0.00010589,2]
[423765786,1780405833000,-500.0,0.00010589,2]
[423765788,1780405833000,-500.0,0.00010589,2]
[423765787,1780405833000,-650.0,0.00010589,2]
[423765791,1780405833000,-500.0,0.00010589,2]
[423765794,1780405833000,-150.0,0.00010598,2]
[423765793,1780405833000,-345.65,0.00010591,2]
[423765797,1780405833000,-200.0,0.0001068,2]
[423765796,1780405833000,-200.0,0.0001068,2]
[423765798,1780405833000,-200.0,0.0001068,7]
[423765799,1780405833000,-200.0,0.0001068,7]
[423765800,1780405833000,-200.0,0.0001068,7]
[423765802,1780405833000,-152.0,0.00010703,2]
[423765803,1780405833000,-300.0,0.00010771,2]
[423765801,1780405833000,-155.8,0.00010686,2]
[423765804,1780405833000,-4522.46451639,0.00010816,2]
[423765837,1780405838000,-1015.0,0.00011006,2]
[423765835,1780405838000,-832.0,0.00010984,2]
[423765836,1780405838000,-204.0,0.00010984,2]
[423765830,1780405838000,-436.0,0.00010941,2]
[423765834,1780405838000,-402.0,0.00010963,2]
[423765841,1780405838000,-254.0,0.00011028,2]
[423765838,1780405838000,-293.0,0.00011006,2]
[423765844,1780405838000,-572.0,0.0001105,2]
[423765846,1780405838000,-347.0,0.00011071,2]
[423765840,1780405838000,-423.0,0.00011028,2]
[423765843,1780405838000,-150.0,0.00011049,2]
[423765842,1780405838000,-322.0,0.00011049,2]
[423765828,1780405838000,-178.0,0.00010919,2]
[423765845,1780405838000,-229.94998835,0.00011064,2]
[423765858,1780405838000,-571.0,0.00011225,2]
[423765847,1780405838000,-1811.0,0.00011072,2]
[423765854,1780405838000,-695.0,0.00011159,2]
[423765839,1780405838000,-1000.0,0.00011007,2]
[423765821,1780405838000,-164.0,0.00010876,2]
[423765832,1780405838000,-186.51,0.00010959,2]
[423765831,1780405838000,-150.0,0.00010959,2]
[423765812,1780405838000,-202.54512931,0.00010588,2]
[423765814,1780405838000,-459.68625584,0.00010588,2]
[423765813,1780405838000,-500.0,0.00010588,2]
[423765819,1780405838000,-578.28957408,0.00010862,2]
[423765816,1780405838000,-11216.46142398,0.00010837,2]
[423765817,1780405838000,-345.65,0.00010849,2]
[423765815,1780405838000,-6684.53548361,0.00010816,2]
[423765818,1780405838000,-4926.0,0.00010861,2]
[423765820,1780405838000,-508.00967907,0.00010865,2]
[423765822,1780405838000,-500.0,0.00010878,2]
[423765825,1780405838000,-8055.0,0.00010882,2]
[423765833,1780405838000,-150.0,0.00010959,2]
[423765823,1780405838000,-500.0,0.00010878,2]
[423765824,1780405838000,-380.41144562,0.00010878,2]
[423765827,1780405838000,-13170.0,0.00010904,2]
[423765849,1780405838000,-159.0,0.00011094,2]
[423765829,1780405838000,-549.61,0.00010933,2]
[423765826,1780405838000,-218.0,0.00010897,2]
[423765811,1780405838000,-391.72871119,0.00010588,2]
[423765857,1780405838000,-824.0,0.00011203,2]
[423765853,1780405838000,-362.0,0.00011137,2]
[423765905,1780405838000,-250.0,0.00011535,2]
[423765892,1780405838000,-2000.0,0.00011496,2]
[423765887,1780405838000,-1041.0,0.00011466,2]
[423765891,1780405838000,-891.0,0.00011488,2]
[423765889,1780405838000,-177.54984805,0.00011484,2]
[423765894,1780405838000,-500.0,0.00011506,2]
[423765910,1780405838000,-250.0,0.00011535,2]
[423765907,1780405838000,-193.0,0.00011535,2]
[423765912,1780405838000,-1143.0,0.00011554,2]
[423765924,1780405838000,-307.0,0.0001162,2]
[423765918,1780405838000,-8307.53487636,0.00011585,2]
[423765923,1780405838000,-1402.42,0.00011609,2]
[423765916,1780405838000,-5510.59210058,0.00011585,2]
[423765927,1780405838000,-405.20889276,0.00011621,2]
[423765928,1780405838000,-215.67541492,0.00011627,2]
[423765914,1780405838000,-643.0,0.00011576,2]
[423765850,1780405838000,-345.65,0.00011107,2]
[423765903,1780405838000,-375.0,0.00011532,2]
[423765901,1780405838000,-1011.0,0.0001151,2]
[423765920,1780405838000,-506.0,0.00011598,2]
[423765899,1780405838000,-193.0,0.00011506,2]
[423765848,1780405838000,-406.0,0.00011093,2]
[423765885,1780405838000,-1427.0,0.00011444,2]
[423765855,1780405838000,-1340.0,0.00011181,2]
[423765851,1780405838000,-844.0,0.00011115,2]
[423765860,1780405838000,-157.61,0.00011233,2]
[423765862,1780405838000,-508.00967907,0.00011235,2]
[423765868,1780405838000,-586.0,0.00011291,2]
[423765864,1780405838000,-1671.0,0.00011247,2]
[423765852,1780405838000,-619.12,0.00011132,2]
[423765867,1780405838000,-249.0,0.00011269,2]
[423765879,1780405838000,-1210.0,0.00011379,2]
[423765875,1780405838000,-1310.0,0.00011357,2]
[423765873,1780405838000,-537.0,0.00011335,2]
[423765897,1780405838000,-2530.69934989,0.00011506,2]
[423765871,1780405838000,-1368.0,0.00011313,2]
[423765883,1780405838000,-1489.0,0.00011422,2]
[423765877,1780405838000,-345.65,0.00011366,2]
[423765881,1780405838000,-1300.0,0.000114,2]
[423766010,1780405839000,-1546.0,0.00013072,2]
[423766009,1780405839000,-1546.0,0.00013072,2]
[423766007,1780405839000,-1546.0,0.00013072,2]
[423766005,1780405839000,-1546.0,0.00013072,2]
[423765992,1780405839000,-1402.42,0.00012899,2]
[423765995,1780405839000,-5510.59210053,0.00013058,2]
[423765988,1780405839000,-2351.0,0.00012811,2]
[423765994,1780405839000,-157.43,0.00012937,2]
[423766003,1780405839000,-1546.0,0.00013072,2]
[423766019,1780405839000,-1546.0,0.00013072,2]
[423765999,1780405839000,-1546.0,0.00013072,2]
[423765996,1780405839000,-157.43,0.00013059,2]
[423766013,1780405839000,-1546.0,0.00013072,2]
[423766032,1780405839000,-405.20889274,0.00013261,2]
[423766021,1780405839000,-1546.0,0.00013072,2]
[423766014,1780405839000,-1546.0,0.00013072,2]
[423766024,1780405839000,-500.0,0.00013082,2]
[423766022,1780405839000,-1546.0,0.00013072,2]
[423766026,1780405839000,-1600.0,0.00013082,2]
[423766028,1780405839000,-157.43,0.0001318,2]
[423766030,1780405839000,-433.0,0.00013248,2]
[423766036,1780405839000,-373.0,0.00013348,5]
[423766054,1780405839000,-342.72406063,0.00013425,2]
[423766039,1780405839000,-500.0,0.00013356,2]
[423766052,1780405839000,-500.0,0.00013425,2]
[423766049,1780405839000,-278.253208,0.00013425,2]
[423765990,1780405839000,-157.43,0.00012816,2]
[423766017,1780405839000,-1546.0,0.00013072,2]
[423766001,1780405839000,-1546.0,0.00013072,2]
[423765945,1780405839000,-2260800.418,0.00011684,2]
[423765987,1780405839000,-165.509678,0.0001281,2]
[423765930,1780405839000,-196.75034628,0.00011627,2]
[423765933,1780405839000,-449.01347115,0.00011635,2]
[423765935,1780405839000,-1291.0,0.00011642,2]
[423765937,1780405839000,-1680.0,0.00011646,2]
[423765949,1780405839000,-1346.0,0.00011707,2]
[423765954,1780405839000,-1720.0,0.00011729,2]
[423765947,1780405839000,-969.0,0.00011685,2]
[423765955,1780405839000,-200.0,0.00011751,2]
[423765951,1780405839000,-152.0,0.00011725,7]
[423765939,1780405839000,-917.0,0.00011664,2]
[423765943,1780405839000,-666.0,0.00011683,2]
[423765958,1780405839000,-374.306863,0.00011869,2]
[423765941,1780405839000,-300.0,0.00011683,2]
[423765960,1780405839000,-5510.59210053,0.00011953,2]
[423766057,1780405839000,-500.0,0.00013425,2]
[423765968,1780405839000,-5510.59210053,0.00012322,2]
[423765970,1780405839000,-296.2,0.00012329,2]
[423765972,1780405839000,-155.8,0.00012467,2]
[423765962,1780405839000,-4279.19,0.00012055,2]
[423765966,1780405839000,-405.20889274,0.00012168,2]
[423765964,1780405839000,-255.0,0.00012099,2]
[423765978,1780405839000,-405.20889274,0.00012714,2]
[423765974,1780405839000,-5510.59210053,0.0001269,2]
[423765983,1780405839000,-160.0,0.0001281,2]
[423765981,1780405839000,-2000.0,0.00012773,2]
[423765976,1780405839000,-157.43,0.00012694,2]
[423765985,1780405839000,-162.754839,0.0001281,2]
[423765997,1780405839000,-1546.0,0.00013072,2]
[423766045,1780405839000,-2213.32341035,0.00013425,2]
[423766102,1780405839000,-1233.0,0.00013425,2]
[423766043,1780405839000,-2274.60278587,0.00013425,2]
[423766098,1780405839000,-1233.0,0.00013425,2]
[423766087,1780405839000,-1233.0,0.00013425,2]
[423766093,1780405839000,-1233.0,0.00013425,2]
[423766089,1780405839000,-1233.0,0.00013425,2]
[423766091,1780405839000,-1233.0,0.00013425,2]
[423766096,1780405839000,-1233.0,0.00013425,2]
[423766095,1780405839000,-500.0,0.00013425,2]
[423766094,1780405839000,-500.0,0.00013425,2]
[423766100,1780405839000,-1233.0,0.00013425,2]
[423766109,1780405839000,-500.0,0.00013425,2]
[423766099,1780405839000,-500.0,0.00013425,2]
[423766106,1780405839000,-1233.0,0.00013425,2]
[423766103,1780405839000,-500.0,0.00013425,2]
[423766101,1780405839000,-500.0,0.00013425,2]
[423766110,1780405839000,-500.0,0.00013425,2]
[423766105,1780405839000,-500.0,0.00013425,2]
[423766104,1780405839000,-1233.0,0.00013425,2]
[423766108,1780405839000,-1233.0,0.00013425,2]
[423766107,1780405839000,-1233.0,0.00013425,2]
[423766117,1780405839000,-500.0,0.00013425,2]
[423766113,1780405839000,-500.0,0.00013425,2]
[423766114,1780405839000,-500.0,0.00013425,2]
[423766116,1780405839000,-1233.0,0.00013425,2]
[423766115,1780405839000,-500.0,0.00013425,2]
[423766112,1780405839000,-1233.0,0.00013425,2]
[423766111,1780405839000,-500.0,0.00013425,2]
[423766118,1780405839000,-537.33389924,0.00013425,2]
[423766088,1780405839000,-500.0,0.00013425,2]
[423766092,1780405839000,-500.0,0.00013425,2]
[423766047,1780405839000,-293.6013759,0.00013425,2]
[423766090,1780405839000,-500.0,0.00013425,2]
[423766097,1780405839000,-500.0,0.00013425,2]
[423766041,1780405839000,-157.43,0.00013423,2]
[423766050,1780405839000,-500.0,0.00013425,2]
[423766034,1780405839000,-157.43,0.00013302,2]
[423766069,1780405839000,-150.0,0.00013425,2]
[423766059,1780405839000,-500.0,0.00013425,2]
[423766070,1780405839000,-500.0,0.00013425,2]
[423766065,1780405839000,-338.44666707,0.00013425,2]
[423766063,1780405839000,-500.0,0.00013425,2]
[423766067,1780405839000,-500.0,0.00013425,2]
[423766060,1780405839000,-508.29052709,0.00013425,2]
[423766061,1780405839000,-500.0,0.00013425,2]
[423766073,1780405839000,-541.41561873,0.00013425,2]
[423766064,1780405839000,-500.0,0.00013425,2]
[423766062,1780405839000,-500.0,0.00013425,2]
[423766075,1780405839000,-500.0,0.00013425,2]
[423766071,1780405839000,-194.79440243,0.00013425,2]
[423766084,1780405839000,-1233.0,0.00013425,2]
[423766080,1780405839000,-500.0,0.00013425,2]
[423766082,1780405839000,-543.74075382,0.00013425,2]
[423766077,1780405839000,-500.0,0.00013425,2]
[423766078,1780405839000,-500.0,0.00013425,2]
[423766079,1780405839000,-500.0,0.00013425,2]
[423766086,1780405839000,-1233.0,0.00013425,2]
[423766083,1780405839000,-1233.0,0.00013425,2]
[423766076,1780405839000,-500.0,0.00013425,2]
[423766074,1780405839000,-500.0,0.00013425,2]
[423766085,1780405839000,-1233.0,0.00013425,2]
[423766081,1780405839000,-500.0,0.00013425,2]
[423766158,1780405840000,-324.37069545,0.00013425,2]
[423766160,1780405840000,-500.0,0.00013425,2]
[423766162,1780405840000,-500.0,0.00013425,2]
[423766157,1780405840000,-500.0,0.00013425,2]
[423766154,1780405840000,-500.0,0.00013425,2]
[423766150,1780405840000,-500.0,0.00013425,2]
[423766153,1780405840000,-500.0,0.00013425,2]
[423766155,1780405840000,-500.0,0.00013425,2]
[423766151,1780405840000,-500.0,0.00013425,2]
[423766152,1780405840000,-500.0,0.00013425,2]
[423766170,1780405840000,-500.0,0.00013425,2]
[423766156,1780405840000,-500.0,0.00013425,2]
[423766166,1780405840000,-500.0,0.00013425,2]
[423766174,1780405840000,-278.88036096,0.00013425,2]
[423766167,1780405840000,-500.0,0.00013425,2]
[423766165,1780405840000,-500.0,0.00013425,2]
[423766161,1780405840000,-386.84986946,0.00013425,2]
[423766168,1780405840000,-500.0,0.00013425,2]
[423766163,1780405840000,-500.0,0.00013425,2]
[423766169,1780405840000,-500.0,0.00013425,2]
[423766171,1780405840000,-500.0,0.00013425,2]
[423766172,1780405840000,-180.45208771,0.00013425,2]
[423766173,1780405840000,-150.0,0.00013425,2]
[423766176,1780405840000,-500.0,0.00013425,2]
[423766175,1780405840000,-500.0,0.00013425,2]
[423766177,1780405840000,-500.0,0.00013425,2]
[423766148,1780405840000,-500.0,0.00013425,2]
[423766164,1780405840000,-500.0,0.00013425,2]
[423766159,1780405840000,-500.0,0.00013425,2]
[423766133,1780405840000,-500.0,0.00013425,2]
[423766143,1780405840000,-1252.26944877,0.00013425,2]
[423766183,1780405840000,-306.6186348,0.00013425,2]
[423766120,1780405840000,-1233.0,0.00013425,2]
[423766121,1780405840000,-1233.0,0.00013425,2]
[423766119,1780405840000,-1233.0,0.00013425,2]
[423766122,1780405840000,-500.0,0.00013425,2]
[423766125,1780405840000,-360.12141826,0.00013425,2]
[423766124,1780405840000,-500.0,0.00013425,2]
[423766123,1780405840000,-500.0,0.00013425,2]
[423766127,1780405840000,-500.0,0.00013425,2]
[423766126,1780405840000,-500.0,0.00013425,2]
[423766128,1780405840000,-500.0,0.00013425,2]
[423766130,1780405840000,-1233.0,0.00013425,2]
[423766129,1780405840000,-500.0,0.00013425,2]
[423766149,1780405840000,-500.0,0.00013425,2]
[423766131,1780405840000,-500.0,0.00013425,2]
[423766134,1780405840000,-500.0,0.00013425,2]
[423766135,1780405840000,-500.0,0.00013425,2]
[423766136,1780405840000,-500.0,0.00013425,2]
[423766137,1780405840000,-500.0,0.00013425,2]
[423766140,1780405840000,-500.0,0.00013425,2]
[423766141,1780405840000,-260.50307483,0.00013425,2]
[423766142,1780405840000,-1233.0,0.00013425,2]
[423766138,1780405840000,-500.0,0.00013425,2]
[423766139,1780405840000,-500.0,0.00013425,2]
[423766145,1780405840000,-500.0,0.00013425,2]
[423766147,1780405840000,-500.0,0.00013425,2]
[423766144,1780405840000,-500.0,0.00013425,2]
[423766146,1780405840000,-500.0,0.00013425,2]
[423766132,1780405840000,-500.0,0.00013425,2]
[423766182,1780405840000,-500.0,0.00013425,2]
[423766196,1780405840000,-10607.765639,0.00013425,2]
[423766178,1780405840000,-500.0,0.00013425,2]
[423766223,1780405840000,-500.0,0.00013698,2]
[423766217,1780405840000,-500.0,0.00013698,2]
[423766216,1780405840000,-500.0,0.00013698,2]
[423766221,1780405840000,-500.0,0.00013698,2]
[423766211,1780405840000,-500.0,0.00013698,2]
[423766218,1780405840000,-500.0,0.00013698,2]
[423766213,1780405840000,-500.0,0.00013698,2]
[423766222,1780405840000,-532.81,0.00013698,2]
[423766219,1780405840000,-500.0,0.00013698,2]
[423766224,1780405840000,-500.0,0.00013698,2]
[423766231,1780405840000,-500.0,0.00013698,2]
[423766228,1780405840000,-500.0,0.00013698,2]
[423766230,1780405840000,-500.0,0.00013698,2]
[423766215,1780405840000,-500.0,0.00013698,2]
[423766227,1780405840000,-500.0,0.00013698,2]
[423766226,1780405840000,-500.0,0.00013698,2]
[423766236,1780405840000,-500.0,0.00013698,2]
[423766229,1780405840000,-500.0,0.00013698,2]
[423766235,1780405840000,-500.0,0.00013698,2]
[423766179,1780405840000,-500.0,0.00013425,2]
[423766233,1780405840000,-500.0,0.00013698,2]
[423766234,1780405840000,-500.0,0.00013698,2]
[423766237,1780405840000,-500.0,0.00013698,2]
[423766240,1780405840000,-500.0,0.00013698,2]
[423766243,1780405840000,-500.0,0.00013698,2]
[423766244,1780405840000,-502.08902244,0.00013698,2]
[423766238,1780405840000,-360.48137374,0.00013698,2]
[423766242,1780405840000,-500.0,0.00013698,2]
[423766225,1780405840000,-500.0,0.00013698,2]
[423766220,1780405840000,-500.0,0.00013698,2]
[423766232,1780405840000,-500.0,0.00013698,2]
[423766212,1780405840000,-500.0,0.00013698,2]
[423766214,1780405840000,-500.0,0.00013698,2]
[423766184,1780405840000,-500.0,0.00013425,2]
[423766180,1780405840000,-500.0,0.00013425,2]
[423766181,1780405840000,-500.0,0.00013425,2]
[423766185,1780405840000,-500.0,0.00013425,2]
[423766190,1780405840000,-500.0,0.00013425,2]
[423766187,1780405840000,-500.0,0.00013425,2]
[423766188,1780405840000,-500.0,0.00013425,2]
[423766189,1780405840000,-500.0,0.00013425,2]
[423766192,1780405840000,-503.59944546,0.00013425,2]
[423766193,1780405840000,-503.86765878,0.00013425,2]
[423766195,1780405840000,-10005.778759,0.00013425,2]
[423766194,1780405840000,-150.0,0.00013425,2]
[423766186,1780405840000,-500.0,0.00013425,2]
[423766198,1780405840000,-236.17347081,0.00013447,7]
[423766191,1780405840000,-500.0,0.00013425,2]
[423766203,1780405840000,-211.17060083,0.00013614,2]
[423766205,1780405840000,-503.57198463,0.00013698,2]
[423766207,1780405840000,-500.0,0.00013698,2]
[423766204,1780405840000,-157.43,0.00013666,2]
[423766200,1780405840000,-221.938416,0.00013451,2]
[423766206,1780405840000,-500.0,0.00013698,2]
[423766199,1780405840000,-189.69740348,0.00013447,7]
[423766202,1780405840000,-157.43,0.00013545,2]
[423766197,1780405840000,-5510.59210053,0.00013427,2]
[423766208,1780405840000,-500.0,0.00013698,2]
[423766209,1780405840000,-500.0,0.00013698,2]
[423766201,1780405840000,-4031.9761867,0.00013496,2]
[423766268,1780405841000,-3292.0,0.00014092,2]
[423766277,1780405841000,-166.66,0.0001411,2]
[423766275,1780405841000,-1546.0,0.000141,2]
[423766276,1780405841000,-1546.0,0.000141,2]
[423766273,1780405841000,-1546.0,0.000141,2]
[423766272,1780405841000,-1546.0,0.000141,2]
[423766271,1780405841000,-1546.0,0.000141,2]
[423766270,1780405841000,-1546.0,0.000141,2]
[423766274,1780405841000,-1546.0,0.000141,2]
[423766289,1780405841000,-637.25,0.00014288,2]
[423766281,1780405841000,-365.2384109,0.00014163,2]
[423766280,1780405841000,-2126.0739475,0.00014163,2]
[423766278,1780405841000,-393.94573094,0.0001415,2]
[423766290,1780405841000,-405.20889274,0.00014354,2]
[423766282,1780405841000,-5510.59210053,0.00014163,2]
[423766283,1780405841000,-1402.42,0.00014189,2]
[423766285,1780405841000,-155.8,0.00014247,2]
[423766267,1780405841000,-2000.0,0.00014051,2]
[423766288,1780405841000,-274.509484,0.0001425,2]
[423766279,1780405841000,-3577.4335164,0.00014163,2]
[423766265,1780405841000,-157.43,0.00014031,2]
[423766260,1780405841000,-166.66,0.00013973,2]
[423766266,1780405841000,-1591.0,0.0001404,2]
[423766286,1780405841000,-365059.59926106,0.0001425,2]
[423766248,1780405841000,-200.0,0.00013699,2]
[423766246,1780405841000,-180.0,0.00013699,2]
[423766247,1780405841000,-166.66,0.00013699,2]
[423766245,1780405841000,-484.7755724,0.00013698,2]
[423766249,1780405841000,-500.0,0.00013699,10]
[423766250,1780405841000,-305.98553863,0.00013699,10]
[423766252,1780405841000,-157.43,0.00013788,2]
[423766261,1780405841000,-253.47364093,0.00013982,2]
[423766269,1780405841000,-1546.0,0.000141,2]
[423766263,1780405841000,-4792.66,0.00014,2]
[423766254,1780405841000,-405.20889274,0.00013807,2]
[423766253,1780405841000,-5510.59210053,0.00013795,2]
[423766251,1780405841000,-1320.0,0.0001372,2]
[423766255,1780405841000,-360.0,0.00013823,2]
[423766257,1780405841000,-157.43,0.00013909,2]
[423766258,1780405841000,-151.0,0.00013933,2]
[423766256,1780405841000,-166.66,0.00013836,2]
[423766259,1780405841000,-4031.9761867,0.00013964,2]
[423766264,1780405841000,-4792.66,0.00014,2]
[423766262,1780405841000,-250.0,0.00014,2]
[423766284,1780405841000,-166.66,0.00014247,2]
[423766334,1780405841000,-461.0,0.000149,5]
[423766291,1780405841000,-350.0,0.00014371,2]
[423766314,1780405841000,-200.353,0.0001468,2]
[423766317,1780405841000,-151.0,0.00014755,2]
[423766319,1780405841000,-3380.33801989,0.0001485,2]
[423766322,1780405841000,-152.28918,0.0001485,2]
[423766321,1780405841000,-152.28917,0.0001485,2]
[423766318,1780405841000,-10000.0,0.00014813,2]
[423766320,1780405841000,-32965.38747936,0.0001485,2]
[423766323,1780405841000,-152.28918,0.0001486,2]
[423766324,1780405841000,-9108.65534203,0.00014874,3]
[423766308,1780405841000,-150.0,0.00014672,2]
[423766287,1780405841000,-151.0,0.0001425,2]
[423766327,1780405841000,-3089.69612641,0.00014874,3]
[423766331,1780405841000,-25000.0,0.00014882,3]
[423766329,1780405841000,-500.0,0.0001488,2]
[423766333,1780405841000,-405.20889274,0.000149,2]
[423766328,1780405841000,-1891.12182772,0.00014874,3]
[423766336,1780405841000,-479.47504239,0.000149,3]
[423766330,1780405841000,-200.0,0.0001488,2]
[423766335,1780405841000,-15818.25295628,0.000149,3]
[423766332,1780405841000,-25000.0,0.00014891,3]
[423766326,1780405841000,-9530.52670384,0.00014874,3]
[423766311,1780405841000,-525.0,0.00014672,2]
[423766325,1780405841000,-1380.0,0.00014874,3]
[423766312,1780405841000,-1273.0,0.00014672,2]
[423766302,1780405841000,-298.293376,0.00014663,2]
[423766295,1780405841000,-500.0,0.00014452,2]
[423766296,1780405841000,-163.22,0.00014475,2]
[423766292,1780405841000,-166.66,0.00014384,2]
[423766293,1780405841000,-4031.9761867,0.00014432,2]
[423766294,1780405841000,-315.86710236,0.00014447,2]
[423766298,1780405841000,-736.0,0.00014507,2]
[423766303,1780405841000,-150.0,0.00014672,2]
[423766299,1780405841000,-393.94573093,0.00014525,2]
[423766300,1780405841000,-5510.59210053,0.00014532,2]
[423766301,1780405841000,-10000.0,0.00014617,2]
[423766305,1780405841000,-150.0,0.00014672,2]
[423766315,1780405841000,-5386.95653349,0.000147,2]
[423766316,1780405841000,-162.41,0.00014755,2]
[423766304,1780405841000,-150.0,0.00014672,2]
[423766306,1780405841000,-150.0,0.00014672,2]
[423766309,1780405841000,-929.0,0.00014672,2]
[423766307,1780405841000,-150.0,0.00014672,2]
[423766313,1780405841000,-1035.277,0.0001468,2]
[423766297,1780405841000,-9999.99,0.00014504,2]
[423766310,1780405841000,-1357.0,0.00014672,2]
[423766337,1780405842000,-1365.15423279,0.00014452,2]
[423766339,1780405842000,-1975.27100512,0.000149,3]
[423766338,1780405842000,-234.84576721,0.00014452,2]
[423766357,1780405843000,-515.53292617,0.000149,2]
[423766343,1780405843000,-1124.99752208,0.000149,3]
[423766344,1780405843000,-3450.0,0.000149,3]
[423766345,1780405843000,-1965.91643684,0.000149,3]
[423766346,1780405843000,-186.08703729,0.000149,3]
[423766347,1780405843000,-390.46947179,0.000149,2]
[423766349,1780405843000,-1247.29692633,0.000149,3]
[423766348,1780405843000,-6933.74542613,0.000149,3]
[423766352,1780405843000,-1557.76467657,0.000149,3]
[423766351,1780405843000,-2726.15282908,0.000149,2]
[423766353,1780405843000,-309.79277628,0.000149,2]
[423766354,1780405843000,-84.15295465,0.000149,2]
[423766355,1780405843000,-578.60704535,0.000149,2]
[423766356,1780405843000,-1640.0,0.000149,2]
[423766350,1780405843000,-1305.82335762,0.000149,2]
[423766372,1780405845000,-2776.45212901,0.000149,2]
[423766370,1780405845000,-500.0,0.00011247,2]
[423766371,1780405845000,-500.0,0.00011521,2]
[423766375,1780405845000,-600.0,0.00015,2]
[423766373,1780405845000,-178.109927,0.00014949,2]
[423766374,1780405845000,-150.0,0.00014999,2]
[423766377,1780405845000,-1500.0,0.00015,2]
[423766380,1780405845000,-250.0,0.00015,2]
[423766384,1780405845000,-9614.50445949,0.00015,2]
[423766381,1780405845000,-446.79827043,0.00015,2]
[423766382,1780405845000,-592.40075735,0.00015,2]
[423766376,1780405845000,-569.32,0.00015,2]
[423766383,1780405845000,-565.91203727,0.00015,2]
[423766379,1780405845000,-250.0,0.00015,2]
[423766378,1780405845000,-1500.0,0.00015,2]
[423766386,1780405846000,-1002.0,0.00015,2]
[423766388,1780405846000,-276.048,0.00015,2]
[423766387,1780405846000,-994.19413203,0.00015,2]
[423766385,1780405846000,-500.0,0.00013698,2]
[423766392,1780405890000,162.76,0.000287,120]
[423766393,1780405895000,150.0,0.00028767,120]
[423766394,1780405907000,161.24,0.000287,120]
[423766395,1780405915000,344.22,0.00028767,120]
[423766396,1780405945000,162.31,0.000287,120]
[423766397,1780405973000,190.81585238,0.00028767,120]
[423766398,1780405994000,500.0,0.00028766,120]
[423766399,1780405999000,200.0,0.00022,120]
[423766400,1780406069000,339.0,0.00022,120]
[423766401,1780406098000,200.0,0.00022,120]
[423766402,1780406108000,161.0,0.00027079,120]